lending/lending_fUSD_20240809
["ID","MTS","AMOUNT","RATE_DAILY","PERIOD"]
[334564321,1723222985415,-500.0,0.00010999,2]
[334564322,1723222985439,-181.41,0.00010999,2]
[334564323,1723222985464,-500.0,0.00010999,2]
[334564324,1723222985488,-393.8214811,0.00010999,2]
[334564325,1723222985511,-500.0,0.00010999,2]
[334564326,1723222985534,-486.01,0.00010999,2]
[334564327,1723222985558,-500.0,0.00010999,2]
[334564328,1723222985583,-500.0,0.00010999,2]
[334564329,1723222985608,-500.0,0.00010999,2]
[334564330,1723222985632,-500.0,0.00010999,2]
[334564331,1723222985656,-500.0,0.00010999,2]
[334564332,1723222985680,-500.0,0.00010999,2]
[334564333,1723222985704,-500.0,0.00010999,2]
[334564334,1723222985728,-500.0,0.00010999,2]
[334564335,1723222985752,-500.0,0.00010999,2]
[334564336,1723222985778,-500.0,0.00010999,2]
[334564337,1723222985801,-500.0,0.00010999,2]
[334564338,1723222985829,-500.0,0.00010999,2]
[334564339,1723222985854,-500.0,0.00010999,2]
[334564340,1723222985878,-500.0,0.00010999,2]
[334564341,1723222985905,-500.0,0.00010999,2]
[334564342,1723222985932,-500.0,0.00010999,2]
[334564343,1723222985956,-500.0,0.00010999,2]
[334564344,1723222985980,-500.0,0.00010999,2]
[334564345,1723222986005,-130.55222858,0.00010999,2]
[334564346,1723223256119,241.72,8.712e-05,2]
[334564347,1723223288996,655.5,8.712e-05,2]
[334564348,1723223289021,4994.82,8.712e-05,2]
[334564349,1723223289049,95743.10583544,8.712e-05,2]
[334564350,1723223430974,150.0,0.00024586,120]
[334564373,1723223432198,-250.0,0.00010667,2]
[334564376,1723223432209,-132.8044,0.000107,2]
[334564386,1723223432258,-139.3156,0.000107,2]
[334564389,1723223432267,-404.7842858,0.00010837,2]
[334564392,1723223432279,-217.7457142,0.00010837,2]
[334564396,1723223432289,-241.72,0.00010976,2]
[334564398,1723223432298,-128.64147402,0.00010999,2]
[334564402,1723223432315,-21.36852598,0.00010999,2]
[334564404,1723223432324,-593.61,0.00010999,2]
[334564405,1723223432333,-500.0,0.00010999,2]
[334564406,1723223432343,-500.0,0.00010999,2]
[334564407,1723223432353,-500.0,0.00010999,2]
[334564408,1723223432363,-480.47586803,0.00010999,2]
[334564409,1723223432376,-19.52413197,0.00010999,2]
[334564410,1723223432387,-500.0,0.00010999,2]
[334564411,1723223432397,-14.39626827,0.00010999,2]
[334564419,1723223437892,-157.63662071,0.000109,2]
[334564420,1723223437902,-485.60373173,0.00010999,2]
[334564421,1723223437912,-500.0,0.00010999,2]
[334564422,1723223437921,-280.09,0.00010999,2]
[334564423,1723223437935,-500.0,0.00010999,2]
[334564424,1723223437945,-500.0,0.00010999,2]
[334564425,1723223437955,-173.51,0.00010999,2]
[334564426,1723223437964,-500.0,0.00010999,2]
[334564427,1723223437974,-206.86,0.00010999,2]
[334564428,1723223437984,-500.0,0.00010999,2]
[334564429,1723223437995,-523.0,0.00011,2]
[334564430,1723223438006,-12788.44201163,0.00011,2]
[334564431,1723223438017,-13681.54791883,0.00011,2]
[334564432,1723223438234,-2493.34838853,0.00011,2]
[334564433,1723223438246,-649.025,0.00011,2]
[334564434,1723223438309,-609.68908,0.00011,2]
[334564453,1723223439798,-651.80578858,0.00011,2]
[334564454,1723223439864,-689.1186,0.00011,2]
[334564455,1723223439876,-2488.0179701,0.00011,2]
[334564456,1723223439945,-395.249745,0.00011,2]
[334564457,1723223439957,-727.40483639,0.00011,2]
[334564458,1723223440018,-54185.72723467,0.00011,2]
[334564563,1723223442826,-5523.42262638,0.00011,2]
[334564565,1723223444055,-632.93440001,0.00011,2]
[334564575,1723223446827,-72.66183934,0.00011,2]
[334564576,1723223446839,-341.13686896,0.00011,2]
[334564585,1723223727515,328.84,8.5e-05,2]
[334564586,1723223730763,150.0,0.00024166,120]
[334564591,1723224315658,312.39,8.219e-05,2]
[334564592,1723224349520,2210.44812185,0.000128,30]
[334564594,1723224501438,-722.338587,9.738e-05,2]
[334564595,1723224501461,-501.97,9.787e-05,2]
[334564596,1723224501482,-205.0,9.8e-05,2]
[334564597,1723224501507,-159.87,9.842e-05,2]
[334564598,1723224501531,-250.0,9.883e-05,2]
[334564599,1723224501553,-1160.821413,9.893e-05,2]
[334564600,1723224516498,-8316.83777782,9.893e-05,2]
[334564601,1723224516521,-300.0,9.893e-05,2]
[334564602,1723224516545,-1428.16222218,9.893e-05,2]
[334564604,1723224529776,-2838.0,9.893e-05,2]
[334564607,1723224584516,2210.44812185,0.00025,60]
[334564618,1723224631974,-300.0,9.892e-05,2]
[334564619,1723224631985,-616.50168511,9.892e-05,2]
[334564620,1723224631996,-377.86782155,9.892e-05,2]
[334564621,1723224632007,-482.99531256,9.892e-05,2]
[334564622,1723224632037,-939.63518078,9.892e-05,2]
[334564623,1723224632047,-1268.69297036,9.893e-05,2]
[334564624,1723224632056,-14066.84986026,9.893e-05,2]
[334564625,1723224632068,-6321.63033617,9.893e-05,2]
[334564626,1723224632078,-536.13723106,9.893e-05,2]
[334564627,1723224632088,-1371.1363752,9.893e-05,2]
[334564628,1723224632098,-411.87190944,9.893e-05,2]
[334564629,1723224632108,-227.71036735,9.893e-05,2]
[334564630,1723224632119,-3070.25593273,9.893e-05,2]
[334564631,1723224632129,-1309.89969901,9.893e-05,2]
[334564632,1723224632139,-2565.44938053,9.893e-05,2]
[334564633,1723224632149,-2834.53014604,9.893e-05,2]
[334564634,1723224632158,-23890.0,9.894e-05,2]
[334564635,1723224632168,-4285.64,9.947e-05,2]
[334564636,1723224632177,-550.0,0.0001,2]
[334564637,1723224632187,-272.12,0.00010042,2]
[334564638,1723224632196,-1852.42,0.00010085,2]
[334564639,1723224632206,-200.0,0.00010105,2]
[334564640,1723224632216,-498.03,0.00010117,2]
[334564641,1723224632225,-179.67,0.00010287,2]
[334564642,1723224632235,-312.39,0.00010472,2]
[334564643,1723224632245,-310.0,0.0001056,2]
[334564644,1723224632255,-155.44773402,0.0001056,2]
[334564645,1723224632264,-325.0270579,0.00010881,2]
[334564667,1723224632432,-94.9729421,0.00010881,2]
[334564669,1723224632442,-1301.02398,0.0001089,2]
[334564671,1723224632451,-335.4322,0.000109,2]
[334564673,1723224632461,-626.75156826,0.000109,2]
[334564675,1723224632476,-341.37313174,0.000109,2]
[334564676,1723224632486,-146.92551321,0.000109,2]
[334564677,1723224632497,-1445.77865243,0.000109,2]
[334564678,1723224632508,-3347.07412977,0.000109,2]
[334564679,1723224632520,-1042.5,0.000109,2]
[334564684,1723224638147,-322.82250005,0.000109,2]
[334564685,1723224638380,-9005.59263688,0.000109,2]
[334564686,1723224638446,-2006.34406766,0.000109,2]
[334564687,1723224638456,-1414.0,0.000109,2]
[334564688,1723224638465,-150.01,0.00010999,2]
[334564689,1723224638475,-200.42850144,0.00010999,2]
[334564690,1723224638484,-510.06,0.00010999,2]
[334564691,1723224638494,-531.3,0.00010999,2]
[334564692,1723224638503,-291.12724518,0.00010999,2]
[334564693,1723224638513,-150.0,0.00010999,2]
[334564694,1723224638523,-6394.22100582,0.00011,2]
[334564695,1723224638532,-1356.3091799,0.00011,2]
[334564696,1723224638543,-1710.00000005,0.00011,2]
[334564711,1723224640239,-552.33090042,0.00011,2]
[334564726,1723224640888,-356.19588052,0.00011,2]
[334564727,1723224640900,-2256.33146258,0.00011,2]
[334564728,1723224640911,-300.0,0.00011,2]
[334564749,1723224641333,-369.0,0.00011,2]
[334564750,1723224641345,-909.2971788,0.00011,2]
[334564751,1723224641356,-3162.20000006,0.00011,2]
[334564752,1723224641367,-348.33,0.00011,2]
[334564753,1723224641379,-2439.14814662,0.00011,2]
[334564754,1723224641390,-667.4499999,0.00011,2]
[334564755,1723224641401,-1480.44053087,0.00011,2]
[334564771,1723224643096,-474.17255389,0.00011,2]
[334564772,1723224643107,-1913.60066779,0.00011,2]
[334564773,1723224643174,-3158.60889169,0.00011,2]
[334564774,1723224643193,-1668.02297108,0.00011,2]
[334564775,1723224643235,-59733.15806613,0.00011,2]
[334564776,1723224643298,-8739.00278943,0.00011,2]
[334564777,1723224643310,-7164.35167377,0.00011,2]
[334564778,1723224644660,-579.35,0.00011,2]
[334564779,1723224644672,-9320.38997933,0.00011,2]
[334564780,1723224644688,-1303.7,0.00011,2]
[334564781,1723224644699,-347.1749995,0.00011,2]
[334564782,1723224644710,-1162.95434,0.00011,2]
[334564790,1723224646097,-2279.71666629,0.00011,2]
[334564791,1723224646108,-766.06273371,0.00011,2]
[334564792,1723224646119,-11182.99173202,0.00011,2]
[334564793,1723224646130,-264.08365109,0.00011,2]
[334564794,1723224646180,-508.5,0.00011,2]
[334564795,1723224646190,-42205.49005454,0.00011,2]
[334564796,1723224646201,-1325.98466,0.00011,2]
[334564797,1723224646212,-886.13506456,0.00011,2]
[334564798,1723224646253,-915.34026495,0.00011,2]
[334564799,1723224646264,-1348.24207892,0.00011,2]
[334564800,1723224646274,-1246.58900404,0.00011,2]
[334564801,1723224646377,-332.78,0.00011,2]
[334564802,1723224646389,-13785.45194128,0.00011,2]
[334564803,1723224646400,-2800.21661438,0.00011,2]
[334564804,1723224646411,-5269.13743549,0.00011,2]
[334564805,1723224646422,-18827.76902264,0.00011,2]
[334564817,1723224773778,313.56,8.95e-05,2]
[334564822,1723224815276,2210.44812185,9.65e-05,2]
[334564823,1723224816124,3069.22708317,8.95e-05,2]
[334564824,1723224820903,507.08308713,8.95e-05,2]
[334564825,1723224821345,2564.62339103,8.95e-05,2]
[334564826,1723224821382,411.46869155,8.95e-05,2]
[334564827,1723224831963,20381.85775885,8.95e-05,2]
[334564828,1723224835182,1309.48185459,8.95e-05,2]
[334564832,1723225041474,2210.44812185,0.000128,30]
[334564833,1723225195796,2210.44812185,0.00025,60]
[334564835,1723225244963,297.88,8.574e-05,2]
[334564838,1723225757408,282.98,8.428e-05,2]
[334564863,1723225832314,-598.41576285,0.0001,2]
[334564864,1723225832326,-1014.96615587,0.0001,2]
[334564865,1723225832338,-457.29170079,0.0001,2]
[334564866,1723225832354,-498.6429475,0.0001,2]
[334564867,1723225832365,-1026.39824093,0.0001,2]
[334564879,1723225838354,-515.4726383,0.0001,2]
[334564880,1723225838382,-796.44791203,0.0001,2]
[334564881,1723225838407,-1136.8850001,0.0001,2]
[334564882,1723225838419,-1502.47964163,0.0001,2]
[334564883,1723225838429,-1309.6907768,0.00010216,2]
[334564884,1723225838438,-401.58,0.00010371,2]
[334564885,1723225838447,-948.39921705,0.00010393,2]
[334564886,1723225838457,-250.0,0.00010421,2]
[334564887,1723225838466,-71.21296452,0.00010575,2]
[334564888,1723225838585,-232.85703548,0.00010575,2]
[334564889,1723225838595,-300.0,0.00010578,2]
[334564890,1723225838604,-300.0,0.00010578,2]
[334564891,1723225838614,-598.42,0.00010579,2]
[334564892,1723225838623,-282.98,0.00010692,2]
[334564893,1723225838633,-1000.0,0.000107,2]
[334564894,1723225838641,-150.0,0.00010822,2]
[334564895,1723225838651,-195.89367718,0.000109,2]
[334564896,1723225838662,-804.10632282,0.000109,2]
[334564897,1723225838671,-5363.6012,0.000109,2]
[334564898,1723225838682,-1915.45145561,0.000109,2]
[334564899,1723225838691,-4794.2461,0.000109,2]
[334564900,1723225838700,-343.2883076,0.000109,2]
[334564901,1723225838709,-6119.37613467,0.00010987,2]
[334564902,1723225838718,-3197.11050291,0.0001099,2]
[334564903,1723225838727,-8552.81997639,0.0001099,3]
[334564904,1723225838738,-553.16,0.0001099,3]
[334564905,1723225838762,-38154.21359419,0.0001099,3]
[334564906,1723225838774,-1634.69999995,0.0001099,3]
[334564907,1723225838785,-20638.83705556,0.0001099,3]
[334564908,1723225838797,-408.66224937,0.0001099,3]
[334564912,1723225840250,-358.34200066,0.0001099,3]
[334564920,1723225840859,-558.42593817,0.0001099,3]
[334564922,1723225840871,-259.445,0.0001099,3]
[334564924,1723225840882,-347.55568211,0.0001099,3]
[334564926,1723225840894,-658.89701571,0.0001099,3]
[334564928,1723225840905,-69948.82056898,0.0001099,3]
[334564942,1723225841318,-196342.21506514,0.0001099,3]
[334564943,1723225841330,-300.0495264,0.0001099,3]
[334564944,1723225841342,-5563.8,0.0001099,3]
[334564957,1723225843287,-1158.57076106,0.0001099,3]
[334564958,1723225843298,-3642.79917391,0.0001099,3]
[334564959,1723225843310,-303.86652,0.0001099,3]
[334564960,1723225843327,-350.62,0.0001099,3]
[334564961,1723225843338,-2448.6,0.0001099,3]
[334564963,1723225843417,-1033.33367044,0.0001099,3]
[334564964,1723225843429,-367.15931116,0.0001099,3]
[334564965,1723225843443,-3529.11975385,0.0001099,3]
[334564966,1723225843454,-3397.76989014,0.0001099,3]
[334564967,1723225843466,-1269.05719409,0.0001099,3]
[334564968,1723225843477,-2971.4261541,0.0001099,3]
[334564969,1723225843491,-4783.16,0.0001099,3]
[334564970,1723225843502,-1067.81353758,0.0001099,3]
[334564971,1723225843514,-455.24917089,0.0001099,3]
[334564972,1723225843548,-1795.66259684,0.0001099,3]
[334564973,1723225843645,-2498.31440764,0.0001099,3]
[334564974,1723225843656,-8502.84801592,0.0001099,3]
[334564975,1723225843667,-36597.54571064,0.0001099,3]
[334564976,1723225843681,-500.0,0.0001099,3]
[334564977,1723225845196,-6020.00259753,0.0001099,3]
[334564978,1723225845390,-723.49542968,0.0001099,3]
[334564979,1723225845413,-19826.037421,0.0001099,3]
[334564980,1723225845424,-54452.30290792,0.0001099,3]
[334564981,1723225845435,-511.74477419,0.0001099,3]
[334564982,1723225845457,-3162.19953279,0.0001099,3]
[334564983,1723225845469,-12612.60000007,0.0001099,3]
[334564985,1723225846315,-360.08234564,0.0001099,3]
[334564986,1723225846327,-461.5400007,0.0001099,3]
[334564987,1723225846342,-335467.42633942,0.0001099,3]
[334564988,1723225846354,-389.71569304,0.0001099,3]
[334564989,1723225846366,-1891.29763656,0.0001099,3]
[334564990,1723225846383,-1131.90187909,0.0001099,3]
[334564991,1723225846396,-904.64662748,0.0001099,3]
[334564992,1723225846409,-555.0,0.0001099,3]
[334564993,1723225846421,-581.02513369,0.0001099,3]
[334564994,1723225846433,-300.025825,0.0001099,3]
[334564995,1723225846446,-264.37005527,0.0001099,3]
[334564996,1723225846456,-968.49131176,0.0001099,3]
[334564997,1723225846483,-1583.93695145,0.0001099,3]
[334565107,1723226344088,309.77,8.52e-05,2]
[334565108,1723226409650,2210.44812185,0.000128,30]
[334565109,1723226422240,183662.98505552,8.52e-05,2]
[334565110,1723226422699,227.71036735,8.52e-05,2]
[334565111,1723226425329,308.49156198,8.52e-05,2]
[334565112,1723226425366,1309.89969901,8.52e-05,2]
[334565113,1723226432948,1268.69297036,8.52e-05,2]
[334565114,1723226445060,364.72077219,8.52e-05,2]
[334565115,1723226458135,7572.79673936,8.52e-05,2]
[334565116,1723226464215,1371.1363752,8.52e-05,2]
[334565117,1723226478415,2565.44938053,8.52e-05,2]
[334565118,1723226482855,3070.25593273,8.52e-05,2]
[334565119,1723226494037,6535.97030019,8.52e-05,2]
[334565120,1723226497712,3070.25593273,8.52e-05,2]
[334565121,1723226529741,1344.73570366,8.52e-05,2]
[334565122,1723226531934,226.8201273,8.52e-05,2]
[334565123,1723226570958,2565.44938053,8.52e-05,2]
[334565128,1723226614714,3070.25593273,8.52e-05,2]
[334565129,1723226664463,2564.21039628,8.52e-05,2]
[334565130,1723226745863,1742.28966726,8.52e-05,2]
[334565133,1723226807943,294.28,8.219e-05,2]
[334565136,1723227032566,-423.11071755,9.9e-05,2]
[334565137,1723227032578,-550.0,0.0001,2]
[334565138,1723227032588,-250.0,0.00010107,2]
[334565139,1723227032599,-678.73,0.00010111,2]
[334565140,1723227032610,-243.26,0.00010115,2]
[334565141,1723227032621,-199.68,0.00010124,2]
[334565142,1723227032631,-78.33,0.00010288,2]
[334565147,1723227038553,-242.94,0.00010288,2]
[334565148,1723227038567,-150.0,0.00010326,2]
[334565149,1723227038579,-300.0,0.00010326,2]
[334565150,1723227038590,-2210.44812185,0.00010327,2]
[334565151,1723227038601,-155.0,0.00010327,2]
[334565152,1723227038612,-1406.38959452,0.00010327,2]
[334565153,1723227038623,-2438.40910026,0.00010327,2]
[334565154,1723227038636,-1185.34288774,0.00010327,2]
[334565155,1723227038680,-283.83287331,0.00010327,2]
[334565156,1723227040548,-649.5947963,0.00010327,2]
[334565187,1723227041333,-51165.80047451,0.00010327,2]
[334565189,1723227041344,-899.03341333,0.00010327,2]
[334565192,1723227041356,-156.74,0.00010417,2]
[334565195,1723227041367,-1007.07,0.00010417,2]
[334565197,1723227041377,-294.28,0.00010482,2]
[334565199,1723227041388,-3121.9051,0.0001089,2]
[334565201,1723227041398,-159.62095465,0.00010899,2]
[334565203,1723227041408,-159.62095464,0.00010899,2]
[334565205,1723227041418,-761.8685,0.000109,2]
[334565226,1723227041622,-346.7026,0.000109,2]
[334565228,1723227041640,-9407.0504,0.000109,2]
[334565230,1723227041653,-159.62095464,0.000109,2]
[334565232,1723227041663,-169.46887535,0.000109,2]
[334565234,1723227041672,-252.74,0.00010959,2]
[334565236,1723227041682,-250.0,0.00010959,2]
[334565238,1723227041692,-3526.0,0.00010986,2]
[334565240,1723227041702,-160.05579513,0.00010987,2]
[334565242,1723227041714,-561.47536672,0.00010989,2]
[334565244,1723227041724,-526.42821578,0.00010989,2]
[334565246,1723227041735,-713.14,0.00010989,2]
[334565248,1723227041745,-713.14,0.00010989,2]
[334565251,1723227041755,-713.14,0.00010989,2]
[334565253,1723227041765,-713.14,0.00010989,2]
[334565255,1723227041775,-713.14,0.00010989,2]
[334565257,1723227041785,-500.0,0.00010989,2]
[334565259,1723227041795,-500.0,0.00010989,2]
[334565261,1723227041805,-500.0,0.00010989,2]
[334565263,1723227041814,-500.0,0.00010989,2]
[334565265,1723227041823,-497.07,0.00010989,2]
[334565266,1723227041833,-21082.02810133,0.0001099,3]
[334565268,1723227041845,-1645.01865245,0.0001099,3]
[334565304,1723227043444,-500.0,0.0001099,3]
[334565305,1723227043456,-275.452,0.0001099,3]
[334565307,1723227044816,-604.707,0.0001099,3]
[334565308,1723227044827,-143714.51541333,0.0001099,3]
[334565309,1723227044837,-687.36978236,0.0001099,3]
[334565310,1723227044848,-1295.08496083,0.0001099,3]
[334565311,1723227044859,-152792.72929801,0.0001099,3]
[334565312,1723227044870,-182796.84022422,0.0001099,3]
[334565313,1723227044881,-3146.60607242,0.0001099,3]
[334565319,1723227046508,-1326.99611609,0.0001099,3]
[334565320,1723227046520,-1026.0,0.0001099,3]
[334565321,1723227046627,-7094.54467962,0.0001099,3]
[334565322,1723227046741,-1549.39999999,0.0001099,3]
[334565346,1723227304928,264.85,8.555e-05,2]
[334565347,1723227348457,2565.3182224,8.555e-05,2]
[334565348,1723227753926,-155.0,0.0001,2]
[334565349,1723227753948,-413.26976674,0.0001,2]
[334565350,1723227753970,-197.58922122,0.0001024,2]
[334565351,1723227753992,-457.01,0.0001034,2]
[334565352,1723227754012,-155.0,0.0001037,2]
[334565353,1723227754033,-948.39921705,0.0001037,2]
[334565354,1723227754055,-17673.73179499,0.0001037,2]
[334565355,1723227758804,-1256.92584908,0.0001037,2]
[334565356,1723227758825,-1444.8273586,0.0001037,2]
[334565357,1723227758845,-4513.0,0.00010421,2]
[334565358,1723227758865,-173.69,0.00010475,2]
[334565359,1723227758889,-200.0,0.00010586,2]
[334565360,1723227758911,-264.85,0.00010819,2]
[334565361,1723227758931,-7500.0,0.000109,2]
[334565362,1723227758952,-500.0,0.00010989,2]
[334565363,1723227758972,-500.0,0.00010989,2]
[334565364,1723227758992,-500.0,0.00010989,2]
[334565365,1723227759012,-500.0,0.00010989,2]
[334565366,1723227759032,-500.0,0.00010989,2]
[334565367,1723227759051,-500.0,0.00010989,2]
[334565368,1723227759072,-301.71400576,0.00010989,2]
[334565369,1723227759093,-564.57,0.00010989,2]
[334565370,1723227759114,-564.57,0.00010989,2]
[334565371,1723227759134,-215.85278656,0.00010989,2]
[334565372,1723227781477,238.36,9.222e-05,2]
[334565373,1723227825782,-156.74,0.00010725,2]
[334565374,1723227825804,-903.33641344,0.00010989,2]
[334565375,1723227825824,-500.0,0.00010989,2]
[334565376,1723227825844,-500.0,0.00010989,2]
[334565377,1723227825865,-300.0,0.00010989,2]
[334565378,1723227825886,-2981.92358656,0.0001099,3]
[334565379,1723227848503,-300.0,0.00010989,2]
[334565380,1723227848528,-17686.0,0.0001099,3]
[334565381,1723227856795,-15000.0,0.0001099,3]
[334565382,1723227857721,-15000.0,0.0001099,3]
[334565383,1723227919654,7587.23983364,9e-05,2]
[334565384,1723227954684,5881.25464484,6.94e-05,2]
[334565402,1723228231607,-550.0,0.0001,2]
[334565403,1723228231618,-982.05470294,0.0001,2]
[334565404,1723228231631,-396.48017172,0.0001,2]
[334565405,1723228231644,-2204.70442374,0.0001,2]
[334565406,1723228231658,-261.92988794,0.0001,2]
[334565407,1723228231668,-210.9584135,0.0001,2]
[334565408,1723228231679,-210.9584135,0.0001,2]
[334565409,1723228231688,-107.5453463,0.000101,2]
[334565410,1723228231700,-137.32826962,0.000101,2]
[334565411,1723228231709,-178.37,0.00010871,2]
[334565412,1723228231720,-300.0,0.00010878,2]
[334565413,1723228231732,-3570.34483549,0.0001088,2]
[334565414,1723228231781,-6489.9684291,0.0001088,2]
[334565416,1723228237783,-3791.46814228,0.0001088,2]
[334565417,1723228237796,-607.47001908,0.0001088,2]
[334565418,1723228237805,-517.52,0.00010989,2]
[334565419,1723228237815,-72.71175762,0.00010989,2]
[334565420,1723228237827,-444.80824238,0.00010989,2]
[334565421,1723228237836,-3169.99064922,0.0001099,3]
[334565422,1723228237907,-522.87689315,0.0001099,3]
[334565423,1723228237918,-585.14741553,0.0001099,3]
[334565424,1723228237931,-778.38911182,0.0001099,3]
[334565425,1723228237942,-9987.90608371,0.0001099,3]
[334565426,1723228237953,-40408.54484397,0.0001099,3]
[334565427,1723228237964,-1169.55400002,0.0001099,3]
[334565435,1723228242360,-1199.87334496,0.0001099,3]
[334565436,1723228242372,-1626.45291562,0.0001099,3]
[334565437,1723228242408,-49871.13696804,0.0001099,3]
[334565438,1723228242420,-400.07483383,0.0001099,3]
[334565439,1723228242442,-745.83403878,0.0001099,3]
[334565440,1723228242454,-17100.0,0.0001099,3]
[334565446,1723228242609,-359.44640036,0.0001099,3]
[334565448,1723228242620,-2659.0617247,0.0001099,3]
[334565450,1723228242631,-971.108,0.0001099,3]
[334565453,1723228242643,-496.786,0.0001099,3]
[334565455,1723228242654,-712.04599,0.0001099,3]
[334565457,1723228242666,-460.56973873,0.0001099,3]
[334565459,1723228242677,-1130.32059321,0.0001099,3]
[334565461,1723228242689,-1034.355,0.0001099,3]
[334565463,1723228242700,-2198.49212684,0.0001099,3]
[334565466,1723228242715,-1032.75,0.0001099,3]
[334565468,1723228242726,-992.57555336,0.0001099,3]
[334565511,1723228243077,-354.726,0.0001099,3]
[334565513,1723228243088,-6000.0,0.0001099,3]
[334565516,1723228243101,-6021.9,0.0001099,3]
[334565551,1723228245744,-5256.37160202,0.0001099,3]
[334565555,1723228249096,226.44,9.333e-05,2]
[334565556,1723228795438,215.11,8.444e-05,2]
[334565557,1723229208689,419.92195263,0.00025,60]
[334565558,1723229230875,227.05,8.312e-05,2]
[334565559,1723229344892,227.71036735,8.312e-05,2]
[334565570,1723229431899,-210.9584135,0.0001,2]
[334565572,1723229431909,-387.96053153,0.00010227,2]
[334565574,1723229431918,-634.39,0.00010327,2]
[334565576,1723229431927,-230.28,0.0001033,2]
[334565578,1723229431937,-167.55,0.00010333,2]
[334565580,1723229431946,-365.61,0.00010371,2]
[334565582,1723229431956,-227.05,0.00010576,2]
[334565584,1723229431965,-932.65767,0.0001088,2]
[334565586,1723229431974,-150.02691329,0.00010899,2]
[334565588,1723229431983,-150.02691327,0.00010899,2]
[334565590,1723229431995,-184.89769904,0.000109,2]
[334565592,1723229432007,-280.56667432,0.000109,2]
[334565594,1723229432018,-534.53562664,0.000109,2]
[334565596,1723229432027,-1000.0,0.000109,2]
[334565598,1723229432036,-1000.0,0.000109,2]
[334565600,1723229432045,-1001.0,0.000109,2]
[334565602,1723229432055,-835.07,0.000109,2]
[334565604,1723229432064,-150.02691327,0.000109,2]
[334565606,1723229432075,-545.84644366,0.00010989,2]
[334565608,1723229432086,-150.01,0.00010989,2]
[334565610,1723229432096,-150.0,0.00010989,2]
[334565612,1723229432105,-500.0,0.00010989,2]
[334565614,1723229432114,-47368.71441884,0.0001099,3]
[334565616,1723229432126,-322.91174239,0.0001099,3]
[334565619,1723229432137,-576.41012845,0.0001099,3]
[334565621,1723229432149,-2005.57355483,0.0001099,3]
[334565623,1723229432160,-746.44510063,0.0001099,3]
[334565625,1723229432171,-46496.65951031,0.0001099,3]
[334565628,1723229432182,-5642.23849742,0.0001099,3]
[334565629,1723229432192,-1650.99,0.0001099,3]
[334565630,1723229432215,-3378.75833065,0.0001099,3]
[334565656,1723229438007,-124996.13602363,0.0001099,3]
[334565657,1723229438019,-843.27,0.0001099,3]
[334565658,1723229438031,-6500.0,0.0001099,3]
[334565659,1723229438042,-450.95372915,0.0001099,3]
[334565660,1723229438053,-648.75139699,0.0001099,3]
[334565661,1723229438064,-12573.41437419,0.0001099,3]
[334565662,1723229438075,-2348.40046312,0.0001099,3]
[334565663,1723229438350,-1832.60649556,0.0001099,3]
[334565668,1723229440041,-3145.404275,0.0001099,3]
[334565669,1723229440053,-687.06,0.0001099,3]
[334565670,1723229440065,-335.545,0.0001099,3]
[334565671,1723229440076,-831.12189452,0.0001099,3]
[334565672,1723229440091,-603.097,0.0001099,3]
[334565673,1723229440103,-1213.13686397,0.0001099,3]
[334565674,1723229440114,-354.33584849,0.0001099,3]
[334565675,1723229440125,-1214.79818361,0.0001099,3]
[334565676,1723229440137,-11068.6,0.0001099,3]
[334565677,1723229440148,-94700.61639352,0.0001099,3]
[334565678,1723229440160,-10477.9876383,0.0001099,3]
[334565679,1723229440171,-1966.49143172,0.0001099,3]
[334565680,1723229440182,-17585.66065602,0.0001099,3]
[334565681,1723229440880,-4439.65096878,0.0001099,3]
[334565682,1723229440897,-4478.44625082,0.0001099,3]
[334565683,1723229440909,-10625.59365678,0.0001099,3]
[334565684,1723229440921,-531.2423039,0.0001099,3]
[334565694,1723229441338,-6618.563923,0.0001099,3]